bitfinex-derivatives/quotes_SOLF0:USTF0_20240820
["timestamp","ask_amount","ask_price","bid_price","bid_amount"]
[1724115219683,8.38,146.8,146.73,8.38]
[1724115219977,0.05086258,146.74,146.71,8.38]
[1724115220176,3.4055,146.77,146.73,3.4062]
[1724115220375,8.38,146.78,146.75,0.04351765]
[1724115220770,8.42762482,146.78,146.75,0.04351765]
[1724115221177,11.83292482,146.78,146.75,0.04351765]
[1724115221671,0.04762482,146.78,146.77,3.4055]
[1724115221872,0.04762482,146.78,146.75,0.04351765]
[1724115222075,62.71872477,146.91,146.76,8.38]
[1724115222270,3.4036,146.86,146.82,3.4043]
[1724115222678,8.38,146.86,146.82,3.4043]
[1724115222881,8.38,146.86,146.78,8.38]
[1724115223079,7.7612,146.9,146.83,0.04656563]
[1724115223377,8.38,146.86,146.83,0.04656563]
[1724115223975,8.38,146.84,146.77,3.4054]
[1724115224180,8.38,146.82,146.76,8.38]
[1724115224375,10.2,147.01,146.79,8.38]
[1724115224682,20.91,146.91,146.8,20.91]
[1724115224881,2.5228,146.9,146.8,20.91]
[1724115225077,2.5228,146.9,146.84,0.05115565]
[1724115225078,0.04327457,146.87,146.84,0.05115565]
[1724115225278,2.5228,146.9,146.78,20.91]
[1724115225279,23.3801,146.89,146.78,20.91]
[1724115225470,0.05128541,146.87,146.84,0.04807967]
[1724115225674,3.45448541,146.87,146.84,0.04807967]
[1724115226180,0.05128541,146.87,146.84,0.04807967]
[1724115227179,0.05128541,146.87,146.84,3.45187967]
[1724115227679,0.05128541,146.87,146.85,3.4036]
[1724115227876,0.05128541,146.87,146.84,0.04807967]
[1724115229483,0.05128541,146.87,146.85,3.4034]
[1724115229982,0.05128541,146.87,146.84,0.04807967]
[1724115230182,0.05128541,146.87,146.85,3.4036]
[1724115230484,0.05128541,146.87,146.84,0.04807967]
[1724115230874,0.05128541,146.87,146.85,3.4034]
[1724115231275,0.05128541,146.87,146.84,0.04807967]
[1724115231483,0.05128541,146.87,146.86,3.4034]
[1724115234077,0.05128541,146.87,146.84,0.04807967]
[1724115234579,3.4035,146.86,146.84,0.04807967]
[1724115235278,3.4036,146.85,146.84,0.04807967]
[1724115235587,5.9573,146.85,146.84,0.04807967]
[1724115236179,3.4042,146.83,146.74,2.5572]
[1724115236380,23.4637,146.85,146.75,20.91]
[1724115236582,23.4637,146.85,146.78,3.4051]
[1724115236782,3.4042,146.83,146.78,3.4051]
[1724115236985,3.4042,146.83,146.75,24.31028705]
[1724115237180,3.4042,146.83,146.79,3.4049]
[1724115237376,0.04588411,146.8,146.79,3.4049]
[1724115238777,0.04588411,146.8,146.78,0.04778381]
[1724115239590,0.04588411,146.8,146.79,3.405]
[1724115239982,5.9574,146.85,146.81,3.4043]
[1724115240289,5.9574,146.85,146.77,24.38937037]
[1724115240789,5.9574,146.85,146.81,3.4044]
[1724115241188,0.0446585,146.84,146.82,0.05076617]
[1724115241582,0.0446585,146.84,146.82,3.45506617]
[1724115241981,0.0446585,146.84,146.83,3.4041]
[1724115242292,4.998,146.89,146.82,0.05076617]
[1724115242587,2.6822,146.88,146.82,0.05076617]
[1724115243189,0.02318983,146.86,146.82,0.05076617]
[1724115243494,0.02318983,146.86,146.85,3.4036]
[1724115250092,3.12568983,146.9,146.86,3.4033]
[1724115250292,20.91,146.92,146.82,3.36862831]
[1724115250695,3.4028,146.89,146.85,3.4035]
[1724115250893,3.4028,146.89,146.82,3.36862831]
[1724115251402,3.4028,146.89,146.84,0.04985548]
[1724115252197,3.4028,146.89,146.86,3.4033]
[1724115252794,3.4028,146.89,146.85,3.4035]
[1724115253095,3.4028,146.89,146.84,0.04985548]
[1724115253292,3.4028,146.89,146.85,3.4034]
[1724115253495,20.91,146.9,146.84,0.04985548]
[1724115253699,20.91,146.9,146.86,0.04713391]
[1724115254197,20.91,146.89,146.79,20.91]
[1724115254400,20.91,146.84,146.65,7.11068732]
[1724115254604,20.91,146.86,146.62,6.8175]
[1724115254605,20.91,146.8,146.62,6.8175]
[1724115254795,20.91,146.8,146.69,20.91]
[1724115254996,3.4056,146.77,146.73,3.4063]
[1724115255306,0.04713391,146.76,146.73,3.45275752]
[1724115255796,0.04713391,146.76,146.65,20.91]
[1724115255797,20.91,146.75,146.55,47.38645358]
[1724115256107,20.91,146.73,146.62,20.91]
[1724115256798,0.04608733,146.69,146.66,0.04746722]
[1724115257102,0.04608733,146.69,146.66,3.45536722]
[1724115258407,0.04608733,146.69,146.66,0.04746722]
[1724115259509,0.04608733,146.69,146.68,3.4075]
[1724115259801,20.91,146.81,146.68,20.91]
[1724115259999,20.91,146.81,146.71,20.91]
[1724115260199,3.4835784,146.8,146.72,3.36572193]
[1724115260801,2.4996,146.79,146.72,3.36572193]
[1724115261002,2.4996,146.79,146.75,0.04520411]
[1724115261308,0.0475041,146.77,146.75,0.04520411]
[1724115263507,0.0475041,146.77,146.67,2.655]
[1724115263702,2.4996,146.79,146.7,20.91]
[1724115263903,5.9048,146.79,146.74,3.406]
[1724115264107,2.4996,146.79,146.74,3.406]
[1724115264303,2.4996,146.79,146.7,20.91]
[1724115264605,0.04938187,146.76,146.73,0.0509511]
[1724115265508,0.04938187,146.76,146.74,3.406]
[1724115265905,0.04938187,146.76,146.73,0.0509511]
[1724115266110,0.04938187,146.76,146.75,3.4059]
[1724115266719,0.04938187,146.76,146.74,3.4061]
[1724115269308,0.04938187,146.76,146.75,3.4059]
[1724115269503,0.04938187,146.76,146.73,0.0509511]
[1724115271611,0.04938187,146.76,146.75,3.4059]
[1724115271820,41.43938187,146.76,146.51,24.3963283]
[1724115272117,20.91,146.72,146.6,24.36911181]
[1724115272309,3.4074,146.69,146.64,3.4083]
[1724115272707,3.4075,146.68,146.64,3.4083]
[1724115272916,3.4571094,146.68,146.65,0.0517413]
[1724115273809,3.4078,146.67,146.65,0.0517413]
[1724115275114,3.4572094,146.68,146.65,0.0517413]
[1724115275708,3.4079,146.67,146.65,0.0517413]
[1724115275917,0.0496094,146.68,146.65,0.0517413]
[1724115276215,0.0496094,146.68,146.65,3.4598413]
[1724115277218,0.0496094,146.68,146.66,3.408]
[1724115278021,0.0496094,146.68,146.65,0.0517413]
[1724115278818,3.4572094,146.68,146.65,0.0517413]
[1724115279010,0.0496094,146.68,146.65,0.0517413]
[1724115279216,0.0496094,146.68,146.66,3.408]
[1724115279920,0.0496094,146.68,146.65,0.0517413]
[1724115280417,0.0496094,146.68,146.66,3.4078]
[1724115281923,0.0496094,146.68,146.65,0.0517413]
[1724115282515,0.0496094,146.68,146.67,3.4078]
[1724115285720,0.0496094,146.68,146.67,24.3178]
[1724115285920,8.8528,146.75,146.72,3.4066]
[1724115285921,2.7224,146.75,146.72,3.4066]
[1724115286120,2.7224,146.75,146.69,20.91]
[1724115286523,2.7224,146.75,146.72,3.4064]
[1724115287027,2.77220271,146.75,146.72,3.45277275]
[1724115287416,2.77220271,146.75,146.73,3.4062]
[1724115287629,2.77220271,146.75,146.72,0.04637275]
[1724115287927,3.4064,146.73,146.72,0.04637275]
[1724115289327,3.4063,146.74,146.72,0.04637275]
[1724115290826,27.08830271,146.75,146.72,0.04637275]
[1724115291123,0.04980271,146.75,146.72,0.04637275]
[1724115293724,0.04980271,146.75,146.73,3.4063]
[1724115296636,0.04980271,146.75,146.74,3.4061]
[1724115296927,0.04980271,146.75,146.72,0.04637275]
[1724115297131,0.04980271,146.75,146.73,3.4063]
[1724115297527,0.04980271,146.75,146.72,0.04637275]
[1724115297929,0.04980271,146.75,146.72,3.45287275]
[1724115298926,0.04980271,146.75,146.72,0.04637275]
[1724115299527,0.04980271,146.75,146.74,3.4061]
[1724115300431,23.5328,146.84,146.78,3.4051]
[1724115300622,20.91,146.82,146.72,20.91]
[1724115300822,24.34427335,146.82,146.76,3.4055]
[1724115301027,24.34427335,146.82,146.72,20.91]
[1724115301233,3.4047,146.81,146.72,20.91]
[1724115301423,24.34427335,146.82,146.76,3.4055]
[1724115301631,0.0442472,146.78,146.76,3.4055]
[1724115301831,0.0442472,146.78,146.76,3.4056]
[1724115302028,0.0442472,146.78,146.75,0.04395533]
[1724115303536,0.0442472,146.78,146.67,20.91]
[1724115303537,20.91,146.77,146.67,20.91]
[1724115303731,20.91,146.77,146.68,3.32292283]
[1724115303936,5.3825,146.78,146.68,3.32292283]
[1724115304133,3.4058,146.76,146.68,3.32292283]
[1724115304330,20.91,146.77,146.67,20.91]
[1724115304531,20.91,146.75,146.65,20.91]
[1724115304731,3.4066,146.72,146.63,20.91]
[1724115304936,3.4066,146.72,146.63,24.29966355]
[1724115305333,3.4066,146.72,146.68,3.4075]
[1724115305832,0.04371206,146.71,146.69,0.04859987]
[1724115306339,0.04371206,146.71,146.69,3.45589987]
[1724115306535,0.04371206,146.71,146.69,0.04859987]
[1724115308338,0.04371206,146.71,146.7,3.4071]
[1724115311932,5.3825,146.78,146.7,20.91]
[1724115312135,2.6776,146.78,146.72,20.91]
[1724115312330,3.405,146.8,146.72,20.91]
[1724115312534,20.91,146.84,146.74,20.91]
[1724115312729,3.45708905,146.83,146.74,20.91]
[1724115312935,3.4045,146.82,146.74,20.91]
[1724115313136,0.04336176,146.8,146.77,0.04699637]
[1724115313743,0.04336176,146.8,146.77,3.45219637]
[1724115315830,20.95336176,146.8,146.77,0.04699637]
[1724115316345,20.95336176,146.8,146.72,2.7075]
[1724115316532,3.4051,146.79,146.74,3.4061]
[1724115317038,3.4051,146.79,146.72,2.7075]
[1724115317238,3.4051,146.79,146.74,3.4061]
[1724115317435,20.91,146.78,146.72,2.7075]
[1724115317641,20.91,146.78,146.69,20.91]
[1724115317938,20.91,146.78,146.7,3.32405639]
[1724115318146,20.91,146.78,146.74,0.04876805]
[1724115318444,0.0515244,146.75,146.74,0.04876805]
[1724115318833,0.0515244,146.75,146.74,3.45486805]
[1724115319239,0.0515244,146.75,146.74,0.04876805]
[1724115319841,0.0515244,146.75,146.74,3.45486805]
[1724115320541,0.0515244,146.75,146.74,0.04876805]
[1724115321050,0.0515244,146.75,146.74,3.45486805]
[1724115322337,2.6163,146.81,146.78,3.4052]
[1724115322541,2.6163,146.81,146.73,20.91]
[1724115322942,3.4048,146.8,146.73,20.91]
[1724115323347,0.05068023,146.78,146.73,20.91]
[1724115323648,0.05068023,146.78,146.75,0.04604151]
[1724115324041,0.05068023,146.78,146.76,3.4055]
[1724115327045,0.05068023,146.78,146.75,3.45184151]
[1724115327243,0.05068023,146.78,146.75,0.04604151]
[1724115327844,0.05068023,146.78,146.75,3.45184151]
[1724115329251,20.96068023,146.78,146.75,0.04604151]
[1724115330138,3.4056,146.77,146.75,0.04604151]
[1724115330549,20.96068023,146.78,146.75,0.04604151]
[1724115331348,24.36608023,146.78,146.75,0.04604151]
[1724115331552,0.05068023,146.78,146.75,0.04604151]
[1724115332052,0.05068023,146.78,146.76,3.4055]
[1724115332851,0.05068023,146.78,146.77,3.4055]
[1724115333455,0.05068023,146.78,146.76,3.4056]
[1724115333755,0.05068023,146.78,146.75,0.04604151]
[1724115334347,0.05068023,146.78,146.76,3.4057]
[1724115334557,0.05068023,146.78,146.75,0.04604151]
[1724115334955,0.05068023,146.78,146.76,3.4057]
[1724115335145,0.05068023,146.78,146.75,0.04604151]
[1724115335347,0.05068023,146.78,146.76,3.4057]
[1724115335953,0.05068023,146.78,146.77,3.4055]
[1724115336656,0.05068023,146.78,146.76,3.4057]
[1724115336847,0.05068023,146.78,146.75,0.04604151]
[1724115337353,0.05068023,146.78,146.76,3.4055]
[1724115337862,0.05068023,146.78,146.75,0.04604151]
[1724115338456,0.05068023,146.78,146.77,3.4055]
[1724115340859,0.05068023,146.78,146.75,0.04604151]
[1724115341460,0.05068023,146.78,146.76,3.4055]
[1724115341956,0.05068023,146.78,146.77,3.4055]
[1724115345267,0.05068023,146.78,146.76,3.4055]
[1724115347366,0.05068023,146.78,146.75,3.45194151]
[1724115348373,0.05068023,146.78,146.75,0.04604151]
[1724115348668,0.05068023,146.78,146.62,20.29047136]
[1724115348669,20.91,146.77,146.62,20.29047136]
[1724115348973,20.91,146.75,146.7,3.4069]
[1724115349374,20.91,146.72,146.63,8.0015]
[1724115349675,0.04459933,146.69,146.66,0.04740677]
[1724115349975,20.91,146.74,146.7,3.4069]
[1724115350268,20.91,146.74,146.71,0.04584978]
[1724115350470,0.04393671,146.73,146.71,0.04584978]
[1724115352370,3.45033671,146.73,146.71,0.04584978]
[1724115354578,24.3166,146.72,146.71,0.04584978]
[1724115354873,24.3166,146.72,146.65,3.40511103]
[1724115355079,20.91,146.72,146.63,28.9115]
[1724115355276,20.91,146.71,146.63,6.089285]
[1724115355580,3.4073,146.69,146.66,3.408]
[1724115355878,0.04685947,146.68,146.66,3.45294151]
[1724115356174,24.42498396,146.68,146.62,3.43780991]
[1724115356483,24.37812449,146.68,146.58,2.5453]
[1724115356776,20.91,146.68,146.58,2.5453]
[1724115357177,0.04319325,146.64,146.63,3.4085]
[1724115357369,0.04815946,146.65,146.63,3.4085]
[1724115358176,0.04815946,146.65,146.62,3.44780827]
[1724115358369,0.04815946,146.65,146.62,0.05209825]
[1724115358776,3.45655946,146.65,146.62,0.05209825]
[1724115359079,0.04815946,146.65,146.62,0.05209825]
[1724115361276,0.04815946,146.65,146.62,6.80071455]
[1724115361473,0.04815946,146.65,146.62,3.46099825]
[1724115362579,0.04815946,146.65,146.62,0.05209825]
[1724115363382,3.4085,146.64,146.62,0.05209825]
[1724115366287,3.4087,146.63,146.62,0.05209825]
[1724115366480,20.91,146.63,146.57,3.34403954]
[1724115366681,20.91,146.63,146.54,20.91]
[1724115367280,3.4091,146.62,146.54,20.91]
[1724115367479,0.05154353,146.6,146.57,0.0447353]
[1724115367681,0.05154353,146.6,146.58,3.4097]
[1724115367887,0.05154353,146.6,146.57,0.0447353]
[1724115368281,0.05154353,146.6,146.59,3.4096]
[1724115371485,0.05154353,146.6,146.57,0.0447353]
[1724115372692,0.05154353,146.6,146.58,3.4096]
[1724115374497,0.05154353,146.6,146.59,3.4096]
[1724115375092,20.48,146.75,146.59,20.91]
[1724115375398,2.6485,146.72,146.63,20.91]
[1724115375595,3.4069,146.71,146.66,3.4078]
[1724115376195,0.04800075,146.7,146.67,0.04743906]
[1724115377390,20.91,146.69,146.62,3.4089]
[1724115377592,0.04800075,146.7,146.52,6.8223]
[1724115377593,20.91,146.65,146.56,20.91]
[1724115377788,3.4086,146.64,146.54,20.91]
[1724115377993,20.91,146.65,146.54,20.91]
[1724115378388,3.4086,146.64,146.59,3.4095]
[1724115378592,0.05081648,146.61,146.58,3.51397008]
[1724115378804,0.05081648,146.61,146.58,0.04412085]
[1724115379000,0.05081648,146.61,146.6,3.4093]
[1724115387499,20.91,146.59,146.5,24.33709288]
[1724115387695,20.91,146.57,146.5,3.42709288]
[1724115388005,24.3207,146.55,146.46,20.91]
[1724115388400,20.91,146.55,146.5,3.4116]
[1724115388700,0.05094856,146.52,146.5,3.4116]
[1724115391094,0.05094856,146.52,146.49,3.4584138]
[1724115391492,0.05094856,146.52,146.49,0.0465138]
[1724115391693,0.05094856,146.52,146.51,3.4115]
[1724115392802,0.05094856,146.52,146.5,3.4116]
[1724115393706,0.05094856,146.52,146.51,3.4115]
[1724115395206,0.05094856,146.52,146.5,3.4117]
[1724115396704,0.05094856,146.52,146.49,3.4584138]
[1724115396903,26.18,146.5,146.35,13.95561381]
[1724115397212,26.18,146.5,146.37,26.18]
[1724115397411,26.18,146.48,146.37,26.18]
[1724115397716,26.18,146.45,146.36,7.8988]
[1724115398110,0.04654445,146.42,146.39,0.04344964]
[1724115399312,26.18,146.41,146.35,3.39258224]
[1724115399505,26.18,146.41,146.29,26.18]
[1724115399816,3.4128,146.46,146.4,3.4139]
[1724115400012,26.18,146.48,146.36,26.18]
[1724115400312,0.04550345,146.43,146.42,3.4134]
[1724115400610,0.05110576,146.44,146.41,0.04944646]
[1724115401003,0.05110576,146.44,146.42,3.4134]
[1724115401204,0.05110576,146.44,146.41,0.04944646]
[1724115402818,0.05110576,146.44,146.41,3.46304646]
[1724115405113,0.05110576,146.44,146.42,3.4134]
[1724115405918,0.05110576,146.44,146.41,0.04944646]
[1724115406517,0.05110576,146.44,146.43,3.4134]
[1724115407319,2.7335,146.51,146.47,3.4124]
[1724115407621,2.7335,146.51,146.4,26.18]
[1724115408122,6.1451,146.51,146.46,3.4125]
[1724115408313,0.04751066,146.5,146.47,0.04768019]
[1724115409322,3.412,146.49,146.47,0.04768019]
[1724115409621,26.18,146.5,146.38,26.18]
[1724115410222,3.412,146.49,146.44,3.4129]
[1724115410615,26.23208551,146.48,146.45,0.05126669]
[1724115410811,29.63532713,146.48,146.45,0.05245945]
[1724115411912,26.22312713,146.48,146.45,0.05245945]
[1724115412919,26.22312713,146.48,146.45,3.46525945]
[1724115413812,0.04312713,146.48,146.45,3.46525945]
[1724115414018,0.04312713,146.48,146.46,3.4126]
[1724115415222,0.04312713,146.48,146.45,0.05245945]
[1724115415623,0.04312713,146.48,146.45,3.46525945]
[1724115417022,0.04312713,146.48,146.45,0.05245945]
[1724115418518,20.99312713,146.48,146.45,0.05245945]
[1724115419233,0.04312713,146.48,146.47,3.4124]
[1724115425332,23.5451,146.55,146.51,3.4114]
[1724115426036,23.5451,146.55,146.52,3.4113]
[1724115426435,23.58958023,146.55,146.52,3.45486747]
[1724115427240,20.95,146.53,146.52,0.04356747]
[1724115427435,20.95,146.53,146.44,26.96977424]
[1724115427840,2.5951,146.55,146.44,26.96977424]
[1724115428035,20.95,146.55,146.44,26.96977424]
[1724115428346,4.9128,146.59,146.5,20.95]
[1724115428547,0.04303508,146.56,146.53,0.04493556]
[1724115429140,0.04303508,146.56,146.55,3.4106]
[1724115429345,24.33935649,146.64,146.54,20.95]
[1724115429939,24.33935649,146.64,146.54,3.43621023]
[1724115430139,24.33935649,146.64,146.52,26.096]
[1724115430343,0.04905604,146.59,146.57,0.04939587]
[1724115430540,27.74795649,146.64,146.57,0.04939587]
[1724115430740,0.04589686,146.59,146.57,0.04939587]
[1724115430942,0.04543325,146.59,146.57,0.04939587]
[1724115431345,0.04543325,146.59,146.58,3.4099]
[1724115438543,0.04543325,146.59,146.57,0.04939587]
[1724115439645,20.95,146.58,146.52,3.4112]
[1724115440250,20.95,146.58,146.51,5.85981994]
[1724115440854,0.047311,146.56,146.54,3.4107]
[1724115442959,0.047311,146.56,146.55,3.4106]
[1724115443657,0.047311,146.56,146.54,3.4108]
[1724115443957,0.047311,146.56,146.53,0.04576686]
[1724115444551,0.047311,146.56,146.55,3.4106]
[1724115446858,0.047311,146.56,146.54,3.4107]
[1724115447162,0.047311,146.56,146.53,0.04576686]
[1724115449065,0.047311,146.56,146.54,3.4107]
[1724115449565,0.047311,146.56,146.53,3.45656686]
[1724115451268,0.047311,146.56,146.54,3.4108]
[1724115451469,0.047311,146.56,146.53,0.04576686]
[1724115451663,0.047311,146.56,146.54,3.1108]
[1724115451865,0.047311,146.56,146.53,0.04576686]
[1724115452064,0.047311,146.56,146.53,3.45666686]
[1724115453971,0.047311,146.56,146.53,0.04576686]
[1724115455670,3.457811,146.56,146.53,0.04576686]
[1724115456467,0.047311,146.56,146.53,3.45676686]
[1724115457565,0.047311,146.56,146.53,0.04576686]
[1724115458166,3.457711,146.56,146.53,0.04576686]
[1724115458763,0.047311,146.56,146.53,0.04576686]
[1724115458968,0.047311,146.56,146.53,3.45666686]
[1724115465774,0.047311,146.56,146.53,0.04576686]
[1724115466872,0.047311,146.56,146.54,3.4107]
[1724115467266,0.047311,146.56,146.53,3.45666686]
[1724115469777,3.457611,146.56,146.53,3.45666686]
[1724115470380,3.4108,146.54,146.46,4.9319]
[1724115470576,11.7908,146.54,146.46,13.3119]
[1724115470880,3.4112,146.53,146.48,3.412]
[1724115471071,8.38,146.54,146.47,8.38]
[1724115471274,3.4107,146.55,146.51,3.4115]
[1724115471472,0.04321346,146.54,146.52,0.04575316]
[1724115471676,0.04321346,146.54,146.52,0.04304755]
[1724115471880,0.04321346,146.54,146.53,3.4109]
[1724115472975,0.04321346,146.54,146.52,3.43643547]
[1724115473279,0.04321346,146.54,146.52,6.84763547]
[1724115474181,0.04321346,146.54,146.52,3.43643547]
[1724115475571,0.04321346,146.54,146.52,0.04304755]
[1724115475777,0.04321346,146.54,146.52,3.40425966]
[1724115476486,3.45401346,146.54,146.52,0.04304755]
[1724115476872,0.04321346,146.54,146.52,0.04304755]
[1724115477077,8.38,146.53,146.52,0.04304755]
[1724115479678,8.38,146.53,146.47,1.9644]
[1724115479872,0.04321346,146.54,146.47,1.9644]
[1724115479873,8.38,146.51,146.47,1.9644]
[1724115480074,11.7917,146.51,146.46,3.41372572]
[1724115480279,8.38,146.51,146.44,2.0953]
[1724115480781,0.05110479,146.49,146.47,3.4123]
[1724115481784,0.05110479,146.49,146.46,6.87881167]
[1724115481988,0.05110479,146.49,146.46,3.46621167]
[1724115482174,8.43110479,146.49,146.46,3.46621167]
[1724115482878,8.43110479,146.49,146.41,2.0224]
[1724115482879,8.38,146.48,146.41,2.0224]
[1724115483276,8.38,146.46,146.41,2.0224]
[1724115483488,8.38,146.46,146.39,1.8574]
[1724115483984,0.0508453,146.44,146.41,0.04654282]
[1724115484373,0.0508453,146.44,146.43,3.4134]
[1724115484784,0.0508453,146.44,146.42,3.4135]
[1724115485974,0.0508453,146.44,146.43,3.4134]
[1724115486377,35.8262,146.55,146.44,3.413]
[1724115486689,8.38,146.49,146.43,8.38]
[1724115487376,0.04744198,146.47,146.45,0.04708427]
[1724115487578,11.7919,146.5,146.46,3.49607575]
[1724115487788,0.05230632,146.47,146.46,3.49607575]
[1724115488087,8.38,146.54,146.46,11.7293968]
[1724115488286,8.38,146.54,146.48,8.38]
[1724115488676,8.38,146.54,146.5,3.4116]
[1724115488876,8.38,146.54,146.5,6.77975806]
[1724115489083,0.04365148,146.53,146.51,0.04401774]
[1724115490681,0.04365148,146.53,146.52,3.4113]
[1724115491083,0.04365148,146.53,146.51,0.04401774]
[1724115494885,0.04365148,146.53,146.51,3.45551774]
[1724115497987,0.04365148,146.53,146.51,0.04401774]
[1724115501188,21.00365148,146.53,146.43,1.9065]
[1724115501384,20.96,146.53,146.43,5.31920273]
[1724115501687,20.96,146.53,146.43,22.8665]
[1724115502187,20.96,146.53,146.43,26.23044009]
[1724115502386,0.05190276,146.49,146.47,0.04307207]
[1724115502787,0.05190276,146.49,146.48,3.4122]
[1724115503487,0.05190276,146.49,146.47,3.45547207]
[1724115503882,0.05190276,146.49,146.47,0.04307207]
[1724115504690,0.05190276,146.49,146.38,22.8566]
[1724115504889,22.8564,146.5,146.38,63.50825856]
[1724115505089,22.8564,146.5,146.38,63.522452]
[1724115505395,22.8564,146.5,146.41,20.96]
[1724115505583,0.04558796,146.47,146.44,0.05225423]
[1724115505787,0.04558796,146.47,146.45,6.84564222]
[1724115505982,0.04558796,146.47,146.44,0.05225423]
[1724115506392,0.04558796,146.47,146.44,6.92197116]
[1724115506586,0.04558796,146.47,146.44,0.05225423]
[1724115507097,0.04558796,146.47,146.44,3.41483659]
[1724115508890,0.04558796,146.47,146.45,3.4127]
[1724115509491,0.04558796,146.47,146.44,0.05225423]
[1724115510485,8.42558796,146.47,146.44,0.05225423]
[1724115511096,11.83808796,146.47,146.44,0.05225423]
[1724115512994,0.04558796,146.47,146.44,0.05225423]
[1724115513489,0.04558796,146.47,146.44,3.46525423]
[1724115513893,0.04558796,146.47,146.44,0.05225423]
[1724115514090,0.04558796,146.47,146.45,3.4129]
[1724115514295,0.04558796,146.47,146.44,0.05225423]
[1724115514498,8.42558796,146.47,146.44,0.05225423]
[1724115514895,8.42558796,146.47,146.44,3.46525423]
[1724115515498,8.38,146.45,146.44,0.05225423]
[1724115516110,8.38,146.45,146.38,1.8796]
[1724115516397,1.8567,146.44,146.35,3.34551988]
[1724115516601,8.38,146.4,146.38,3.4144]
[1724115517195,8.38,146.4,146.33,1.829]
[1724115517196,8.38,146.39,146.33,1.829]
[1724115517397,0.04311828,146.4,146.35,0.04409422]
[1724115517398,8.38,146.37,146.35,0.04409422]
[1724115517599,8.38,146.39,146.35,0.04409422]
[1724115518203,8.38,146.39,146.36,3.39685146]
[1724115518406,21.02311828,146.4,146.36,6.81185146]
[1724115519100,0.04311828,146.4,146.37,3.4147]
[1724115519904,0.04311828,146.4,146.38,3.48593689]
[1724115520104,0.04311828,146.4,146.35,0.04409422]
[1724115520301,0.04311828,146.4,146.35,3.43172995]
[1724115520513,0.04311828,146.4,146.35,0.04409422]
[1724115521007,0.04311828,146.4,146.35,3.50204259]
[1724115522205,0.04311828,146.4,146.38,3.4143]
[1724115523401,0.04311828,146.4,146.39,3.4143]
[1724115523611,20.98,146.46,146.38,0.04947339]
[1724115523902,20.98,146.46,146.41,3.4137]
[1724115524308,1.7788,146.47,146.38,20.98]
[1724115524505,1.7788,146.47,146.42,3.4134]
[1724115524698,0.04304833,146.44,146.42,3.4134]
[1724115525108,0.04304833,146.44,146.41,0.04987367]
[1724115525298,20.98,146.5,146.41,0.04987367]
[1724115525615,20.98,146.5,146.4,20.98]
[1724115525911,24.47137341,146.5,146.44,3.413]
[1724115526109,24.47137341,146.5,146.44,6.85556926]
[1724115526312,0.04952165,146.48,146.46,0.04969683]
[1724115528714,0.04952165,146.48,146.47,3.4124]
[1724115529406,0.04952165,146.48,146.46,6.84626693]
[1724115529814,0.04952165,146.48,146.46,3.43366693]
[1724115529999,0.04952165,146.48,146.47,3.4124]
[1724115531808,1.9561,146.53,146.46,3.43366693]
[1724115532821,0.04877131,146.51,146.5,3.4116]
[1724115533918,0.04877131,146.51,146.49,3.46077301]
[1724115534218,0.04877131,146.51,146.49,0.04897301]
[1724115534620,0.04877131,146.51,146.5,3.4117]
[1724115534812,0.04877131,146.51,146.49,0.04897301]
[1724115535218,0.04877131,146.51,146.49,3.46077301]
[1724115535421,0.04877131,146.51,146.49,0.04897301]
[1724115536017,0.04877131,146.51,146.5,3.4117]
[1724115538614,0.04877131,146.51,146.49,3.46077301]
[1724115539021,0.04877131,146.51,146.49,0.04897301]
[1724115539414,0.04877131,146.51,146.49,3.46077301]
[1724115539926,3.8248,146.57,146.49,3.46077301]
[1724115539927,3.8248,146.57,146.49,0.04897301]
[1724115540229,8.39,146.55,146.52,3.4111]
[1724115540925,8.43627455,146.55,146.52,3.45923342]
[1724115541321,8.43627455,146.55,146.53,3.4109]
[1724115541528,0.04627455,146.55,146.53,3.4109]
[1724115541827,0.04627455,146.55,146.54,3.4108]
[1724115542223,8.39,146.6,146.56,3.4102]
[1724115542824,11.7994,146.6,146.56,3.4102]
[1724115543426,0.04429117,146.59,146.57,3.45948768]